bitfinex/quotes_BTCUSD_20240717
["timestamp","ask_amount","ask_price","bid_price","bid_amount"]
[1721235190398,0.00767702,64090.0,64089.0,0.611712]
[1721235190598,0.00767702,64090.0,64089.0,0.299646]
[1721235190800,0.15603,64090.0,64089.0,0.000913]
[1721235191162,0.16371111,64090.0,64089.0,0.000913]
[1721235191619,0.47577211,64090.0,64089.0,0.000913]
[1721235191855,0.78783311,64090.0,64089.0,0.000913]
[1721235192531,1.09989411,64090.0,64089.0,0.000913]
[1721235192737,2.02289785,64090.0,64089.0,0.000913]
[1721235192949,2.27418099,64090.0,64089.0,0.000913]
[1721235193159,2.27618099,64090.0,64089.0,0.022913]
[1721235193361,2.7042301,64090.0,64089.0,0.022913]
[1721235193607,2.76701029,64090.0,64089.0,0.022913]
[1721235193799,2.24859972,64090.0,64089.0,0.000913]
[1721235193991,2.22418099,64090.0,64089.0,0.000913]
[1721235194188,2.23177015,64090.0,64089.0,0.001913]
[1721235194431,2.28714819,64090.0,64089.0,0.008913]
[1721235194633,1.87721489,64090.0,64089.0,0.008913]
[1721235194838,1.50309474,64090.0,64089.0,0.008913]
[1721235195241,1.348713,64090.0,64089.0,0.008913]
[1721235195459,0.892152,64090.0,64089.0,0.008913]
[1721235195867,0.480091,64090.0,64089.0,0.008913]
[1721235196040,0.480091,64090.0,64089.0,0.0113106]
[1721235196041,0.011,64090.0,64089.0,0.0113106]
[1721235196449,0.02,64090.0,64089.0,0.0123106]
[1721235196804,0.02,64090.0,64089.0,0.0141046]
[1721235197004,0.009,64090.0,64089.0,0.0113106]
[1721235197328,0.156025,64092.0,64090.0,0.002794]
[1721235197521,0.312838,64101.0,64091.0,0.04733046]
[1721235197522,0.312027,64097.0,64091.0,0.04733046]
[1721235197759,0.312019,64099.0,64093.0,0.156022]
[1721235197974,0.156018,64095.0,64094.0,0.002794]
[1721235198254,0.156016,64096.0,64092.0,0.002794]
[1721235198456,0.312027,64097.0,64092.0,0.002794]
[1721235198691,0.156018,64095.0,64094.0,0.002794]
[1721235198895,0.156012,64098.0,64094.0,0.002794]
[1721235199050,0.156834,64101.0,64096.0,0.156015]
[1721235199258,0.00083,64101.0,64098.0,0.002794]
[1721235199466,0.00083,64101.0,64094.0,0.312037]
[1721235199467,0.00083,64101.0,64100.0,0.002794]
[1721235199671,0.00083,64101.0,64100.0,0.0238905]
[1721235199875,0.00083,64101.0,64100.0,0.2430965]
[1721235200081,0.00083,64101.0,64100.0,1.224622]
[1721235200288,0.00083,64101.0,64100.0,1.536634]
[1721235200656,0.00183,64101.0,64100.0,1.542634]
[1721235200859,0.00283,64101.0,64100.0,1.542634]
[1721235201285,0.00183,64101.0,64100.0,1.536634]
[1721235201699,0.00283,64101.0,64100.0,1.550634]
[1721235202108,0.00283,64101.0,64100.0,1.988746]
[1721235202307,0.00283,64101.0,64100.0,2.13814389]
[1721235202520,0.00283,64101.0,64100.0,2.10214389]
[1721235202720,0.00183,64101.0,64100.0,1.76713189]
[1721235202927,0.00183,64101.0,64100.0,1.63761424]
[1721235203150,0.00183,64101.0,64100.0,0.71557824]
[1721235203351,0.00183,64101.0,64100.0,0.3471965]
[1721235203604,0.00083,64101.0,64100.0,0.3331965]
[1721235203779,0.00183,64101.0,64100.0,0.3611965]
[1721235203985,0.00183,64101.0,64100.0,0.9572205]
[1721235204186,0.00183,64101.0,64100.0,1.11160224]
[1721235204656,0.00083,64101.0,64100.0,1.11160224]
[1721235204933,0.00183,64101.0,64100.0,1.12560224]
[1721235205136,0.00183,64101.0,64100.0,1.63761424]
[1721235205355,0.00083,64101.0,64100.0,1.62361424]
[1721235205663,0.00083,64101.0,64100.0,1.31160224]
[1721235205791,0.00083,64101.0,64100.0,0.1938965]
[1721235205999,0.00083,64101.0,64100.0,0.5059085]
[1721235206209,0.00083,64101.0,64100.0,0.8179205]
[1721235206387,0.00083,64101.0,64100.0,1.47031424]
[1721235206617,0.00083,64101.0,64100.0,1.48431424]
[1721235206815,0.00183,64101.0,64100.0,1.49831424]
[1721235207049,0.00183,64101.0,64100.0,1.48431424]
[1721235207254,0.00183,64101.0,64100.0,1.49831424]
[1721235207461,0.00183,64101.0,64100.0,1.48431424]
[1721235207462,0.00083,64101.0,64100.0,1.48431424]
[1721235207666,0.00183,64101.0,64100.0,1.49831424]
[1721235208517,0.00084,64117.0,64112.0,0.2]
[1721235208737,0.00084,64117.0,64116.0,0.748501]
[1721235208972,0.52364871,64136.0,64116.0,0.748501]
[1721235208973,0.46304871,64136.0,64132.0,0.155926]
[1721235209173,0.46304871,64136.0,64135.0,0.311842]
[1721235209399,0.0753,64142.0,64131.0,0.345]
[1721235209400,0.31181,64142.0,64131.0,0.345]
[1721235209601,0.155905,64142.0,64135.0,0.311842]
[1721235209806,0.0831,64148.0,64136.0,0.311835]
[1721235209978,0.311757,64153.0,64140.0,0.311813]
[1721235210181,0.0636,64158.0,64153.0,0.311754]
[1721235210397,0.155859,64161.0,64153.0,0.467631]
[1721235210599,0.164197,64162.0,64153.0,0.4915215]
[1721235210805,0.00834,64162.0,64153.0,0.8032755]
[1721235211006,0.155858,64161.0,64153.0,0.8032755]
[1721235211676,0.155858,64161.0,64153.0,0.8062755]
[1721235212076,0.00834,64162.0,64153.0,0.8032755]
[1721235212303,0.155858,64161.0,64153.0,0.64590324]
[1721235212462,0.00934,64154.0,64153.0,0.34814924]
[1721235212656,0.00934,64154.0,64153.0,1.28341124]
[1721235213330,0.00934,64154.0,64153.0,1.53341124]
[1721235213633,0.00834,64162.0,64161.0,0.2]
[1721235213866,0.00834,64162.0,64161.0,1.43426874]
[1721235214238,0.00834,64162.0,64161.0,1.74598374]
[1721235214488,0.00834,64162.0,64161.0,2.08069874]
[1721235214649,0.00834,64166.0,64165.0,0.82924]
[1721235214854,0.00083,64172.0,64169.0,0.667514]
[1721235215056,0.00083,64172.0,64169.0,1.44559488]
[1721235215257,0.00083,64172.0,64169.0,1.75727088]
[1721235215460,0.00083,64172.0,64170.0,0.77918]
[1721235215604,0.00083,64172.0,64170.0,1.24523374]
[1721235216022,0.00835,64182.0,64181.0,0.155809]
[1721235216374,0.00835,64182.0,64181.0,0.1796995]
[1721235216375,0.01558854,64182.0,64181.0,0.1796995]
[1721235216707,0.48300754,64182.0,64181.0,0.0238905]
[1721235216933,0.15582,64177.0,64171.0,0.158626]
[1721235217161,0.07717479,64173.0,64172.0,0.31021274]
[1721235217634,0.08441288,64173.0,64172.0,0.31021274]
[1721235217860,0.08441288,64173.0,64170.0,0.014]
[1721235217861,0.08441288,64173.0,64170.0,0.016794]
[1721235218091,0.155833,64171.0,64170.0,0.016794]
[1721235218261,0.07717479,64173.0,64169.0,0.014]
[1721235218262,0.00729801,64172.0,64169.0,0.014]
[1721235218472,0.00729969,64171.0,64170.0,0.002794]
[1721235218676,0.00729969,64171.0,64170.0,0.51728044]
[1721235218880,0.38879379,64181.0,64174.0,0.155824]
[1721235219011,0.0619,64184.0,64175.0,0.15438174]
[1721235219220,0.07717479,64198.0,64175.0,0.15438174]
[1721235219221,0.00730679,64180.0,64175.0,0.43498174]
[1721235219468,0.07717479,64181.0,64176.0,0.311642]
[1721235219703,0.00728877,64180.0,64179.0,0.155812]
[1721235219939,0.00728877,64180.0,64179.0,0.62182174]
[1721235220187,0.00728877,64180.0,64179.0,0.15438174]
[1721235220421,0.07717479,64188.0,64181.0,0.467427]
[1721235220665,0.23296679,64188.0,64181.0,0.62180874]
[1721235220868,0.23296679,64188.0,64181.0,0.67024144]
[1721235221066,0.155787,64191.0,64181.0,0.98185944]
[1721235221298,0.07717479,64190.0,64181.0,0.98185944]
[1721235221504,0.07717479,64190.0,64181.0,0.0484327]
[1721235221738,0.311593,64187.0,64181.0,0.009]
[1721235221973,0.01567433,64182.0,64181.0,0.78973369]
[1721235222166,0.01567433,64182.0,64181.0,0.63080874]
[1721235222413,0.00835,64182.0,64181.0,0.63080874]
[1721235222714,0.00835,64182.0,64181.0,0.16338174]
[1721235222920,0.00835,64182.0,64181.0,0.64080874]
[1721235223125,0.00835,64182.0,64181.0,0.477427]
[1721235223527,0.23296179,64190.0,64181.0,0.47599974]
[1721235223728,0.23296179,64190.0,64185.0,0.155798]
[1721235223729,0.00733649,64189.0,64185.0,0.155798]
[1721235223963,0.00733649,64189.0,64186.0,0.155796]
[1721235224162,0.00733649,64189.0,64186.0,0.311591]
[1721235224369,0.00733649,64189.0,64186.0,0.15438174]
[1721235224574,0.00733649,64189.0,64188.0,0.467376]
[1721235224776,0.15777479,64198.0,64189.0,0.155789]
[1721235224777,0.155778,64194.0,64189.0,0.155789]
[1721235224982,0.15777479,64198.0,64186.0,0.21628174]
[1721235224983,0.07717479,64191.0,64186.0,0.21628174]
[1721235225186,0.07717479,64191.0,64188.0,0.311584]
[1721235225345,0.07717479,64191.0,64189.0,0.155789]
[1721235225546,0.07717479,64191.0,64188.0,0.15579]
[1721235225744,0.07717479,64191.0,64187.0,0.20716971]
[1721235225745,0.23295979,64191.0,64187.0,0.20716971]
[1721235225958,0.07717479,64191.0,64187.0,0.36296371]
[1721235226158,0.07717479,64191.0,64188.0,0.02252567]
[1721235226367,0.07717479,64191.0,64190.0,0.155787]
[1721235226562,0.07817479,64191.0,64190.0,0.155787]
[1721235226805,0.08017479,64191.0,64190.0,0.155787]
[1721235227165,0.08117479,64191.0,64189.0,0.155789]
[1721235227360,0.08117479,64191.0,64190.0,0.05278797]
[1721235227565,0.07917479,64191.0,64190.0,0.20857497]
[1721235227964,0.002,64191.0,64190.0,0.98610671]
[1721235228182,0.002,64191.0,64190.0,1.26670671]
[1721235228536,0.07717479,64198.0,64193.0,0.155777]
[1721235228742,0.07717479,64198.0,64194.0,0.17830167]
[1721235228743,0.23294279,64198.0,64194.0,0.17830167]
[1721235229349,0.23294279,64198.0,64194.0,0.02252567]
[1721235229350,0.155775,64195.0,64194.0,0.02252567]
[1721235229551,0.31155,64195.0,64189.0,0.155789]
[1721235229807,0.07717479,64190.0,64189.0,0.155789]
[1721235230013,0.07717479,64191.0,64190.0,0.467362]
[1721235230324,0.08417479,64198.0,64193.0,0.31156]
[1721235230492,0.08417479,64198.0,64194.0,0.04659417]
[1721235230697,0.08417479,64198.0,64195.0,0.155774]
[1721235231237,0.07717479,64198.0,64195.0,0.155774]
[1721235231458,0.155774,64196.0,64194.0,0.04659417]
[1721235231659,0.07717479,64198.0,64194.0,0.04659417]
[1721235231660,0.15577,64197.0,64194.0,0.04659417]
[1721235231864,0.07717479,64198.0,64195.0,0.02871947]
[1721235231865,0.23294279,64198.0,64195.0,0.02871947]
[1721235232285,0.155772,64196.0,64195.0,0.02871947]
[1721235232484,0.467317,64196.0,64195.0,0.02871947]
[1721235232689,0.07717479,64198.0,64185.0,0.155798]
[1721235233060,0.155783,64192.0,64188.0,0.155791]
[1721235233232,0.155783,64192.0,64186.0,0.311591]
[1721235233233,0.155783,64192.0,64189.0,0.158583]
[1721235233433,0.155783,64192.0,64189.0,0.002794]
[1721235233633,0.155787,64190.0,64189.0,0.002794]
[1721235233773,0.00741714,64191.0,64187.0,0.002794]
[1721235233978,0.00741882,64190.0,64189.0,0.155789]
[1721235234402,0.155781,64193.0,64189.0,0.155789]
[1721235234616,0.007,64197.0,64190.0,0.002794]
[1721235234816,0.007,64197.0,64194.0,0.155777]
[1721235235018,0.001,64198.0,64194.0,0.155777]
[1721235235227,0.155771,64197.0,64193.0,0.15578]
[1721235235506,0.001,64198.0,64197.0,0.15577]
[1721235235900,0.001,64198.0,64193.0,0.311556]
[1721235236109,0.155764,64200.0,64196.0,0.155772]
[1721235236292,0.001,64197.0,64194.0,0.175777]
[1721235236494,0.001,64197.0,64194.0,0.01]
[1721235236657,0.001,64197.0,64194.0,0.321553]
[1721235236857,0.155764,64200.0,64197.0,0.011]
[1721235237498,0.15576,64201.0,64197.0,0.166769]
[1721235237701,0.155764,64200.0,64197.0,0.011]
[1721235238099,0.155764,64200.0,64196.0,0.155772]
[1721235238595,0.38868079,64205.0,64190.0,0.2806]
[1721235238596,0.07717479,64198.0,64194.0,0.012]
[1721235238829,0.155773,64196.0,64194.0,0.012]
[1721235239025,0.07717479,64198.0,64194.0,0.167776]
[1721235239026,0.23294279,64198.0,64194.0,0.167776]
[1721235239290,0.001,64198.0,64195.0,0.0482136]
[1721235239424,0.156768,64198.0,64197.0,0.009]
[1721235239623,0.311524,64201.0,64197.0,0.009]
[1721235239624,0.155761,64201.0,64197.0,0.16477]
[1721235239820,0.311515,64203.0,64197.0,0.009]
[1721235240021,0.155758,64202.0,64198.0,0.155766]
[1721235240223,0.07717479,64202.0,64199.0,0.02710004]
[1721235240423,0.155763,64200.0,64199.0,0.02710004]
[1721235240944,0.001,64201.0,64199.0,0.02710004]
[1721235241346,0.156761,64201.0,64199.0,0.02710004]
[1721235241511,0.001,64201.0,64200.0,0.93319674]
[1721235241870,0.155744,64208.0,64204.0,0.155752]
[1721235242320,0.311481,64210.0,64205.0,0.15575]
[1721235242321,0.00750541,64207.0,64205.0,0.15575]
[1721235242531,0.00750373,64206.0,64204.0,0.155753]
[1721235242761,0.00750373,64206.0,64200.0,0.0482136]
[1721235242762,0.15576,64201.0,64200.0,0.0482136]
[1721235242960,0.155772,64197.0,64189.0,0.311578]
[1721235243159,0.311526,64200.0,64192.0,0.155782]
[1721235243371,0.07717479,64205.0,64190.0,0.59809295]
[1721235243372,0.155775,64195.0,64193.0,0.13214021]
[1721235243584,0.155775,64195.0,64194.0,0.12934621]
[1721235243790,0.155773,64196.0,64194.0,0.12934621]
[1721235244087,0.311534,64199.0,64192.0,0.002794]
[1721235244088,0.155765,64199.0,64195.0,0.28791421]
[1721235244228,0.155765,64199.0,64196.0,0.12934621]
[1721235244428,0.155765,64199.0,64197.0,0.13214021]
[1721235244631,0.10838,64215.0,64198.0,0.28372795]
[1721235244812,0.10838,64215.0,64199.0,0.13214021]
[1721235244813,0.07717479,64212.0,64199.0,0.13214021]
[1721235245016,0.07717479,64205.0,64199.0,0.002794]
[1721235245220,0.467289,64200.0,64199.0,0.002794]
[1721235245416,0.155768,64198.0,64195.0,0.002794]
[1721235245621,0.155772,64197.0,64195.0,0.002794]
[1721235245875,0.155772,64197.0,64196.0,0.0172575]
[1721235246052,0.155767,64199.0,64196.0,0.0172575]
[1721235246375,0.155767,64199.0,64197.0,0.002794]
[1721235246376,0.155768,64198.0,64197.0,0.002794]
[1721235246752,0.467304,64198.0,64197.0,0.002794]
[1721235246917,0.155768,64198.0,64197.0,0.011]
[1721235247503,0.155768,64198.0,64197.0,0.058834]
[1721235247687,0.467304,64198.0,64197.0,0.047834]
[1721235247880,0.155771,64197.0,64193.0,0.155779]
[1721235248038,0.155766,64199.0,64196.0,0.014]
[1721235248242,0.155766,64199.0,64197.0,0.002794]
[1721235248666,0.311527,64200.0,64197.0,0.002794]
[1721235248870,0.311527,64200.0,64197.0,0.013794]
[1721235248871,0.15577701,64198.0,64197.0,0.013794]
[1721235249106,0.15577701,64198.0,64197.0,0.0279573]
[1721235249311,0.46731301,64198.0,64197.0,0.0399573]
[1721235249507,0.15577701,64198.0,64197.0,0.0169573]
[1721235249729,0.528025,64195.0,64194.0,0.002794]
[1721235249933,0.839575,64195.0,64194.0,0.002794]
[1721235250241,1.151125,64195.0,64194.0,0.002794]
[1721235250433,0.311592,64187.0,64180.0,0.002794]
[1721235250607,0.155803,64184.0,64181.0,0.12937114]
[1721235250808,0.155803,64184.0,64182.0,0.13216514]
[1721235250986,0.155803,64184.0,64183.0,0.12937114]
[1721235251846,0.123558,64184.0,64179.0,0.155813]
[1721235252013,0.07717479,64192.0,64180.0,0.1293714]
[1721235252014,0.467427,64181.0,64180.0,0.1293714]
[1721235252226,0.467427,64181.0,64180.0,0.1433714]
[1721235252426,0.467427,64181.0,64180.0,0.15770854]
[1721235252629,0.467427,64181.0,64180.0,0.1293714]
[1721235252630,0.68230874,64181.0,64180.0,0.1293714]
[1721235252973,0.68230874,64181.0,64164.0,0.09251074]
[1721235252974,0.36626688,64181.0,64162.0,0.46304871]
[1721235253089,0.155844,64167.0,64163.0,0.13220811]
[1721235253293,0.311683,64168.0,64164.0,0.12941411]
[1721235253491,0.528638,64166.0,64165.0,0.13220811]
[1721235253694,0.840329,64166.0,64165.0,0.14263492]
[1721235254334,0.840329,64166.0,64165.0,0.02867954]
[1721235255054,0.779229,64166.0,64165.0,0.01545873]
[1721235255328,0.0611,64170.0,64165.0,0.01545873]
[1721235255524,0.155839,64169.0,64166.0,0.002794]
[1721235255861,0.155843,64167.0,64166.0,0.002794]
[1721235256009,0.467529,64167.0,64166.0,0.002794]
[1721235256212,0.856615,64167.0,64166.0,0.002794]
[1721235256415,0.467536,64166.0,64165.0,0.02345873]
[1721235256620,1.090918,64166.0,64165.0,0.02345873]
[1721235257025,1.090918,64166.0,64165.0,0.01545873]
[1721235257765,1.090918,64166.0,64165.0,0.02445873]
[1721235257964,1.090918,64166.0,64165.0,0.01545873]
[1721235258339,1.090918,64166.0,64165.0,0.02345873]
[1721235258681,1.24529974,64166.0,64165.0,0.02345873]
[1721235258883,1.55699074,64166.0,64165.0,0.02345873]
[1721235259293,1.55799074,64166.0,64165.0,0.03045873]
[1721235259491,2.15818174,64166.0,64165.0,0.03045873]
[1721235259895,2.21070244,64166.0,64165.0,0.03045873]
[1721235260090,0.155906,64141.0,64140.0,0.002794]
[1721235260457,1.229845,64141.0,64140.0,0.002794]
[1721235260661,1.229845,64141.0,64130.0,0.009163]
[1721235260662,0.467776,64133.0,64130.0,0.009163]
[1721235260872,0.779627,64133.0,64130.0,0.009163]
[1721235261905,1.091478,64133.0,64130.0,0.009163]
[1721235262569,0.001,64133.0,64132.0,0.015163]
[1721235262764,0.155925,64133.0,64132.0,0.009163]
[1721235262980,0.467776,64133.0,64132.0,0.0175156]
[1721235263186,0.155925,64133.0,64132.0,0.011163]
[1721235263389,0.155925,64133.0,64132.0,0.009163]
[1721235263920,0.156925,64133.0,64132.0,0.015163]
[1721235264110,0.468776,64133.0,64132.0,0.015163]
[1721235264313,0.001,64133.0,64132.0,0.015163]
[1721235264934,0.001,64133.0,64132.0,0.1299622]
[1721235265098,0.46304871,64153.0,64138.0,0.311824]
[1721235265293,0.155896,64146.0,64139.0,0.158704]
[1721235265670,0.155897,64145.0,64139.0,0.158704]
[1721235265866,0.155894,64146.0,64140.0,0.155908]
[1721235266089,0.0644,64154.0,64141.0,0.04420844]
[1721235266315,0.155884,64151.0,64141.0,0.04420844]
[1721235266553,0.155873,64155.0,64149.0,0.155886]
[1721235266759,0.311708,64163.0,64150.0,0.314559]
[1721235266960,0.0639,64164.0,64150.0,0.314559]
[1721235266961,0.155865,64158.0,64150.0,0.314559]
[1721235267164,0.155865,64158.0,64152.0,0.155879]
[1721235267372,0.155865,64158.0,64153.0,0.002794]
[1721235267581,0.311731,64158.0,64153.0,0.002794]
[1721235267974,0.311731,64158.0,64151.0,0.0338992]
[1721235267975,0.467598,64158.0,64152.0,0.002794]
[1721235268197,0.219751,64164.0,64153.0,0.04141444]
[1721235268373,0.311676,64170.0,64154.0,0.002794]
[1721235268585,0.5268,64171.0,64154.0,0.002794]
[1721235268586,0.15585,64165.0,64159.0,0.155862]
[1721235268738,0.15585,64165.0,64160.0,0.0366932]
[1721235268943,0.311696,64165.0,64160.0,0.0366932]
[1721235269232,0.155853,64163.0,64160.0,0.0366932]
[1721235269410,0.5268,64171.0,64160.0,0.0366932]
[1721235269769,0.77787,64171.0,64160.0,0.0366932]
[1721235269950,0.4662,64171.0,64161.0,0.04141444]
[1721235270154,0.4662,64171.0,64164.0,0.15585]
[1721235270155,0.155836,64170.0,64164.0,0.15585]
[1721235270280,0.155836,64170.0,64165.0,0.002794]
[1721235271169,0.4662,64171.0,64165.0,0.002794]
[1721235271367,0.4662,64171.0,64170.0,0.467508]
[1721235271582,0.155819,64177.0,64171.0,0.155833]
[1721235271770,0.155819,64177.0,64170.0,0.3455712]
[1721235271771,0.155821,64176.0,64172.0,0.002794]
[1721235271948,0.155821,64176.0,64171.0,0.002794]
[1721235272313,0.15582,64177.0,64171.0,0.002794]
[1721235272513,0.155821,64176.0,64172.0,0.04141444]
[1721235272784,0.311619,64181.0,64173.0,0.002794]
[1721235272912,0.155809,64181.0,64175.0,0.155822]
[1721235273112,0.155811,64180.0,64176.0,0.002794]
[1721235273314,0.155811,64180.0,64174.0,0.155825]
[1721235273315,0.155811,64180.0,64175.0,0.002794]
[1721235273514,0.4662,64182.0,64176.0,0.0338992]
[1721235273849,0.155812,64180.0,64177.0,0.002794]
[1721235274217,0.4662,64182.0,64177.0,0.002794]
[1721235274431,0.4662,64182.0,64178.0,0.311632]
[1721235274626,0.4662,64182.0,64181.0,0.927845]
[1721235274866,0.4662,64182.0,64181.0,0.96925944]
[1721235275075,0.602,64200.0,64189.0,0.311578]
[1721235275283,0.155759,64202.0,64196.0,0.155771]
[1721235275457,0.155761,64201.0,64194.0,0.155775]
[1721235275658,0.311513,64203.0,64196.0,0.155772]
[1721235275858,0.311513,64203.0,64197.0,0.002794]
[1721235276061,0.311509,64204.0,64196.0,0.002794]
[1721235276297,0.07717479,64205.0,64196.0,0.002794]
[1721235276476,0.07717479,64198.0,64196.0,0.002794]
[1721235276759,0.155755,64204.0,64197.0,0.04141444]
[1721235276963,0.23292679,64205.0,64199.0,0.155764]
[1721235277122,0.23292679,64205.0,64198.0,0.314329]
[1721235277123,0.07717479,64204.0,64200.0,0.002794]
[1721235277304,0.07717479,64204.0,64201.0,0.15576]
[1721235277520,0.07717479,64204.0,64202.0,0.002794]
[1721235277718,0.07717479,64204.0,64203.0,0.0338992]
[1721235277961,0.23292779,64204.0,64203.0,0.0338992]
[1721235278193,0.155758,64202.0,64196.0,0.155772]
[1721235278396,0.155758,64202.0,64197.0,0.002794]
[1721235278935,0.155758,64202.0,64201.0,0.004]
[1721235279135,0.07717479,64204.0,64201.0,0.004]
[1721235279358,0.07717479,64204.0,64202.0,0.0192499]
[1721235279535,0.07717479,64204.0,64202.0,0.0164559]
[1721235279536,0.23292879,64204.0,64202.0,0.0164559]
[1721235279739,0.155755,64203.0,64202.0,0.0164559]
[1721235279945,0.07717479,64204.0,64202.0,0.0164559]
[1721235280087,0.155757,64203.0,64199.0,0.002]
[1721235280298,0.001,64202.0,64200.0,0.002794]
[1721235280697,0.001,64202.0,64198.0,0.002794]
[1721235280898,0.07717479,64205.0,64198.0,0.002794]
[1721235281098,0.07717479,64205.0,64202.0,0.160757]
[1721235281334,0.07717479,64205.0,64203.0,0.0475077]
[1721235281586,0.48864479,64212.0,64203.0,0.0475077]
[1721235281701,0.07717479,64204.0,64203.0,0.0475077]
[1721235283054,0.07717479,64204.0,64203.0,0.2032627]
[1721235283672,0.07717479,64204.0,64203.0,0.0475077]
[1721235284272,0.07717479,64204.0,64203.0,0.005]
[1721235284450,0.07717479,64204.0,64203.0,0.009]
[1721235285236,0.07800479,64204.0,64203.0,0.009]
[1721235286554,0.85677179,64204.0,64203.0,0.009]
[1721235286791,1.82076753,64204.0,64203.0,0.009]
[1721235286949,2.4096241,64204.0,64203.0,0.009]
[1721235287150,2.4096241,64204.0,64178.0,0.002794]
[1721235287151,0.77907,64179.0,64178.0,0.002794]
[1721235287410,0.77907,64179.0,64177.0,0.46304871]
[1721235287411,0.467449,64178.0,64177.0,0.46304871]
[1721235287627,0.311593,64187.0,64175.0,0.155823]
[1721235287838,0.155806,64183.0,64176.0,0.002794]
[1721235288045,0.155807,64182.0,64177.0,0.0470282]
[1721235288211,0.00696141,64182.0,64174.0,0.158619]
[1721235288623,0.155805,64183.0,64174.0,0.158619]
[1721235288837,0.00696141,64181.0,64177.0,0.007]
[1721235289300,0.155805,64183.0,64178.0,0.002794]
[1721235289460,0.00696141,64180.0,64178.0,0.002794]
[1721235289665,0.155806,64182.0,64178.0,0.0158619]
[1721235289923,0.00696141,64179.0,64178.0,0.0158619]
[1721235290087,0.155806,64182.0,64178.0,0.0158619]
[1721235290283,0.00696308,64179.0,64178.0,0.0158619]
[1721235290500,0.00696308,64179.0,64178.0,0.0208619]
[1721235290703,0.155806,64182.0,64178.0,0.0208619]
[1721235290926,0.00696308,64179.0,64178.0,0.005]
[1721235291124,0.155806,64182.0,64176.0,0.002794]
[1721235291327,0.00696308,64179.0,64178.0,0.006]
[1721235291528,0.156806,64182.0,64178.0,0.017]
[1721235291728,0.00696308,64179.0,64178.0,0.172816]
[1721235292182,0.001,64182.0,64178.0,0.172816]
[1721235292352,0.00696308,64179.0,64178.0,0.161816]
[1721235292695,0.001,64182.0,64178.0,0.006]
[1721235292860,0.001,64182.0,64179.0,0.0504203]
[1721235293062,0.00696141,64181.0,64179.0,0.0476263]
[1721235293305,0.00696141,64181.0,64180.0,0.002794]
[1721235293501,0.155801,64185.0,64180.0,0.002794]
[1721235293658,0.0068586,64181.0,64180.0,0.002794]
[1721235293859,0.155802,64184.0,64180.0,0.002794]
[1721235293860,0.155802,64184.0,64180.0,0.02768734]
[1721235294066,0.0068586,64181.0,64180.0,0.02768734]
[1721235294266,0.155802,64184.0,64180.0,0.02768734]
[1721235294463,0.0068586,64181.0,64180.0,0.02768734]
[1721235294749,0.4662,64198.0,64183.0,0.1407]
[1721235294950,0.4662,64198.0,64185.0,0.311599]
[1721235295097,0.155781,64193.0,64186.0,0.158589]
[1721235295306,0.4662,64198.0,64186.0,0.158589]
[1721235295307,0.155776,64195.0,64188.0,0.155791]
[1721235295503,0.155776,64195.0,64189.0,0.002794]
[1721235295504,0.155778,64194.0,64189.0,0.002794]
[1721235295709,0.155781,64193.0,64190.0,0.02768734]
[1721235295904,0.155781,64193.0,64191.0,0.002794]
[1721235296105,0.621969,64198.0,64192.0,0.155781]
[1721235296342,0.155771,64197.0,64193.0,0.002794]
[1721235296470,0.155771,64197.0,64192.0,0.002794]
[1721235296670,0.155773,64196.0,64193.0,0.0476263]
[1721235297032,0.155773,64196.0,64194.0,0.002794]
[1721235297184,0.777738,64198.0,64194.0,0.002794]
[1721235297384,0.155771,64197.0,64194.0,0.002794]
[1721235298176,0.621968,64198.0,64194.0,0.002794]
[1721235298436,0.4662,64198.0,64196.0,0.002794]
[1721235298662,0.311515,64203.0,64196.0,0.002794]
[1721235298865,0.002,64197.0,64196.0,0.002794]
[1721235299149,0.002,64197.0,64196.0,0.470111]
[1721235299297,0.002,64197.0,64196.0,0.467317]
[1721235299542,0.002,64197.0,64196.0,0.5149433]
[1721235299944,0.23375879,64204.0,64198.0,0.155767]
[1721235300286,0.00683065,64203.0,64199.0,0.002794]
[1721235300491,0.00683065,64203.0,64196.0,0.2013263]
[1721235300492,0.155759,64202.0,64197.0,0.158563]
[1721235300628,0.00682897,64202.0,64198.0,0.18345434]
[1721235300847,0.00682897,64202.0,64201.0,0.467281]
[1721235301040,0.00083,64204.0,64203.0,0.467266]
[1721235301285,0.00083,64204.0,64199.0,0.51153]
[1721235301507,0.00766233,64204.0,64200.0,0.28788804]
[1721235301662,0.00766233,64204.0,64201.0,0.2033863]
[1721235301663,0.00083,64204.0,64201.0,0.2033863]
[1721235301867,0.00683903,64203.0,64202.0,0.002794]
[1721235302661,0.78561603,64203.0,64202.0,0.002794]
[1721235302863,0.78561603,64203.0,64198.0,0.005]
[1721235302864,0.155761,64201.0,64198.0,0.005]
[1721235303212,0.155761,64201.0,64199.0,0.002794]
[1721235303506,0.00685246,64200.0,64199.0,0.467296]
[1721235303722,0.20083,64204.0,64202.0,0.155756]
[1721235303928,0.19083,64204.0,64203.0,0.47006]
[1721235304144,0.19083,64204.0,64203.0,0.467266]
[1721235304530,0.19083,64204.0,64203.0,0.843277]
[1721235304953,0.19083,64204.0,64203.0,0.9726033]
[1721235305184,0.19083,64204.0,64203.0,0.843277]
[1721235305330,0.19083,64204.0,64203.0,1.52029267]
[1721235305985,0.19083,64204.0,64203.0,1.88180367]
[1721235305986,0.11551636,64204.0,64203.0,1.88180367]
[1721235306217,0.11551636,64204.0,64203.0,1.76348074]
[1721235306347,0.11551636,64204.0,64203.0,2.17239722]
[1721235306551,0.11551636,64204.0,64203.0,2.12239722]
[1721235306750,1e-08,64204.0,64203.0,2.13639722]
[1721235306956,1e-08,64204.0,64203.0,2.18639722]
[1721235307172,1e-08,64204.0,64203.0,2.19639722]
[1721235307374,1e-08,64204.0,64203.0,2.29639722]
[1721235307574,1e-08,64204.0,64203.0,2.24639722]
[1721235307773,1e-08,64204.0,64203.0,2.23639722]
[1721235307976,1e-08,64204.0,64203.0,2.43639722]